[Event "Titled Tuesday Blitz November 15 Late 2022"]
[White "Figorito, Nick"]
[Black "Aggelis, Nikolaos"]
[WhiteFideId "30923689"]
[BlackFideId "4213220"]
[WhiteElo "2351"]
[BlackElo "2189"]
[Result "1/2-1/2"]
[Round "05"]
[TimeControl "180+1"]
[Date "2022.11.16"]
[WhiteClock "0:00:58"]
[BlackClock "0:00:30"]

1. Nf3 {[%clk 0:03:00]}  c5 {[%clk 0:02:58]} 2. g3 {[%clk 0:03:01]}  g6 {[%clk 0:02:58]} 3. Bg2 {[%clk 0:03:01]}  Nc6 {[%clk 0:02:58]} 4. O-O {[%clk 0:03:02]}  Bg7 {[%clk 0:02:58]} 5. c4 {[%clk 0:03:03]}  e5 {[%clk 0:02:46]} 6. Nc3 {[%clk 0:03:03]}  d6 {[%clk 0:02:46]} 7. d3 {[%clk 0:03:03]}  Nge7 {[%clk 0:02:46]} 8. Bg5 {[%clk 0:03:03]}  O-O {[%clk 0:02:46]} 9. Bxe7 {[%clk 0:03:03]}  Nxe7 {[%clk 0:02:45]} 10. Ne1 {[%clk 0:03:03]}  a6 {[%clk 0:02:42]} 11. Nc2 {[%clk 0:03:03]}  Qc7 {[%clk 0:02:42]} 12. Ne3 {[%clk 0:03:03]}  Be6 {[%clk 0:02:42]} 13. Rb1 {[%clk 0:03:02]}  Rab8 {[%clk 0:02:41]} 14. b4 {[%clk 0:02:53]}  cxb4 {[%clk 0:02:13]} 15. Rxb4 {[%clk 0:02:54]}  b5 {[%clk 0:02:13]} 16. Ncd5 {[%clk 0:02:43]}  Nxd5 {[%clk 0:02:10]} 17. Nxd5 {[%clk 0:02:43]}  Bxd5 {[%clk 0:02:07]} 18. Bxd5 {[%clk 0:02:44]}  Rfc8 {[%clk 0:01:56]} 19. Qb3 {[%clk 0:02:28]}  bxc4 {[%clk 0:01:50]} 20. dxc4 {[%clk 0:02:25]}  Rxb4 {[%clk 0:01:47]} 21. Qxb4 {[%clk 0:02:26]}  Rb8 {[%clk 0:01:47]} 22. Qa4 {[%clk 0:02:23]}  a5 {[%clk 0:01:42]} 23. Qc2 {[%clk 0:02:05]}  Qb6 {[%clk 0:01:32]} 24. h4 {[%clk 0:02:01]}  Qb2 {[%clk 0:01:29]} 25. Rc1 {[%clk 0:01:58]}  Bh6 {[%clk 0:01:22]} 26. e3 {[%clk 0:01:57]}  Qxc2 {[%clk 0:01:19]} 27. Rxc2 {[%clk 0:01:58]}  Bf8 {[%clk 0:01:15]} 28. Rc3 {[%clk 0:01:53]}  Be7 {[%clk 0:01:10]} 29. Rb3 {[%clk 0:01:43]}  Rxb3 {[%clk 0:01:07]} 30. axb3 {[%clk 0:01:44]}  Bd8 {[%clk 0:01:02]} 31. Kf1 {[%clk 0:01:40]}  Kg7 {[%clk 0:01:02]} 32. Ke2 {[%clk 0:01:39]}  Bb6 {[%clk 0:00:59]} 33. e4 {[%clk 0:01:35]}  f5 {[%clk 0:00:57]} 34. f3 {[%clk 0:01:27]}  Kf6 {[%clk 0:00:54]} 35. Kf1 {[%clk 0:01:22]}  f4 {[%clk 0:00:51]} 36. g4 {[%clk 0:01:11]}  h6 {[%clk 0:00:52]} 37. Kg2 {[%clk 0:01:11]}  Be3 {[%clk 0:00:46]} 38. Kh3 {[%clk 0:01:09]}  g5 {[%clk 0:00:44]} 39. h5 {[%clk 0:01:06]}  Ke7 {[%clk 0:00:44]} 40. Kg2 {[%clk 0:01:06]}  Kd8 {[%clk 0:00:45]} 41. Kf1 {[%clk 0:01:06]}  Kc7 {[%clk 0:00:45]} 42. Ke2 {[%clk 0:01:07]}  Kb6 {[%clk 0:00:46]} 43. Kd3 {[%clk 0:01:07]}  Kc5 {[%clk 0:00:47]} 44. Kc3 {[%clk 0:01:06]}  Bd4+ {[%clk 0:00:47]} 45. Kc2 {[%clk 0:01:07]}  Kb4 {[%clk 0:00:47]} 46. Be6 {[%clk 0:01:06]}  Ka3 {[%clk 0:00:47]} 47. Bd5 {[%clk 0:01:04]}  a4 {[%clk 0:00:44]} 48. bxa4 {[%clk 0:01:04]}  Kxa4 {[%clk 0:00:45]} 49. Be6 {[%clk 0:01:02]}  Kb4 {[%clk 0:00:42]} 50. Bd5 {[%clk 0:01:02]}  Bb6 {[%clk 0:00:41]} 51. Be6 {[%clk 0:01:00]}  Kc5 {[%clk 0:00:41]} 52. Kd3 {[%clk 0:01:00]}  Ba5 {[%clk 0:00:39]} 53. Bd5 {[%clk 0:01:00]}  Kb4 {[%clk 0:00:39]} 54. Be6 {[%clk 0:00:59]}  Kb3 {[%clk 0:00:39]} 55. Bd5 {[%clk 0:00:59]}  Kb2 {[%clk 0:00:38]} 56. Ke2 {[%clk 0:00:56]}  Kc3 {[%clk 0:00:38]} 57. Be6 {[%clk 0:00:55]}  Kc2 {[%clk 0:00:36]} 58. Bd5 {[%clk 0:00:55]}  Bb6 {[%clk 0:00:33]} 59. Be6 {[%clk 0:00:55]}  Be3 {[%clk 0:00:33]} 60. Bd5 {[%clk 0:00:56]}  Bc5 {[%clk 0:00:32]} 61. Be6 {[%clk 0:00:56]}  Kc3 {[%clk 0:00:30]} 62. Bd5 {[%clk 0:00:57]}  Kd4 {[%clk 0:00:30]} 63. Be6 {[%clk 0:00:57]}  Ba3 {[%clk 0:00:30]} 64. Bd5 {[%clk 0:00:57]}  Bb4 {[%clk 0:00:30]} 65. Be6 {[%clk 0:00:58]} 1/2-1/2


[Site "https://www.chess.com"]

[Event "Titled Tuesday Blitz November 15 Late 2022"]
[White "Gardezi, Arsal"]
[Black "Sanchez, Robert"]
[WhiteFideId "30949521"]
[BlackFideId "2034360"]
[WhiteElo "1906"]
[BlackElo "2320"]
[Result "1-0"]
[Round "05"]
[TimeControl "180+1"]
[Date "2022.11.16"]
[WhiteClock "0:00:57"]
[BlackClock "0:00:29"]

1. Nf3 {[%clk 0:03:00]}  d5 {[%clk 0:02:59]} 2. d4 {[%clk 0:03:00]}  c6 {[%clk 0:02:59]} 3. c4 {[%clk 0:03:01]}  Nf6 {[%clk 0:03:00]} 4. cxd5 {[%clk 0:03:01]}  cxd5 {[%clk 0:03:00]} 5. Nc3 {[%clk 0:03:01]}  Nc6 {[%clk 0:03:01]} 6. Bf4 {[%clk 0:03:02]}  Bf5 {[%clk 0:03:01]} 7. e3 {[%clk 0:03:02]}  e6 {[%clk 0:03:01]} 8. a3 {[%clk 0:03:03]}  Bd6 {[%clk 0:02:52]} 9. Bg3 {[%clk 0:03:01]}  O-O {[%clk 0:02:51]} 10. Bd3 {[%clk 0:03:01]}  Bg4 {[%clk 0:02:49]} 11. O-O {[%clk 0:02:59]}  e5 {[%clk 0:02:41]} 12. dxe5 {[%clk 0:02:54]}  Bxe5 {[%clk 0:02:34]} 13. Be2 {[%clk 0:02:52]}  Bxg3 {[%clk 0:02:29]} 14. hxg3 {[%clk 0:02:53]}  Re8 {[%clk 0:02:28]} 15. Qb3 {[%clk 0:02:48]}  d4 {[%clk 0:02:08]} 16. Rad1 {[%clk 0:02:47]}  Ne4 {[%clk 0:01:30]} 17. Nxe4 {[%clk 0:01:57]}  Rxe4 {[%clk 0:01:29]} 18. Qxb7 {[%clk 0:01:55]}  Rc8 {[%clk 0:01:17]} 19. Nxd4 {[%clk 0:01:54]}  Nxd4 {[%clk 0:01:13]} 20. Bxg4 {[%clk 0:01:38]}  Rxg4 {[%clk 0:01:12]} 21. exd4 {[%clk 0:01:38]}  Rb8 {[%clk 0:01:08]} 22. Qxa7 {[%clk 0:01:30]}  Rxb2 {[%clk 0:01:08]} 23. d5 {[%clk 0:01:30]}  h5 {[%clk 0:01:05]} 24. d6 {[%clk 0:01:26]}  h4 {[%clk 0:00:59]} 25. Qe7 {[%clk 0:01:20]}  Rb8 {[%clk 0:00:46]} 26. Rfe1 {[%clk 0:01:14]}  hxg3 {[%clk 0:00:43]} 27. f3 {[%clk 0:01:07]}  Rg6 {[%clk 0:00:37]} 28. d7 {[%clk 0:00:56]}  Qb6+ {[%clk 0:00:30]} 29. Qe3 {[%clk 0:00:56]}  Qxe3+ {[%clk 0:00:29]} 30. Rxe3 {[%clk 0:00:57]}  Rd8 {[%clk 0:00:29]} 31. Re8+ {[%clk 0:00:57]} 1-0


[Site "https://www.chess.com"]

[Event "Titled Tuesday Blitz November 15 Late 2022"]
[White "Gerbelli Neto, Eduardo"]
[Black "Chirilov, James A"]
[WhiteFideId "2103281"]
[BlackFideId "30976677"]
[WhiteElo "2178"]
[BlackElo "1790"]
[Result "0-1"]
[Round "05"]
[TimeControl "180+1"]
[Date "2022.11.16"]
[WhiteClock "0:01:16"]
[BlackClock "0:00:54"]

1. e4 {[%clk 0:03:00]}  c5 {[%clk 0:02:59]} 2. Nc3 {[%clk 0:03:00]}  d6 {[%clk 0:02:56]} 3. f4 {[%clk 0:03:01]}  g6 {[%clk 0:02:56]} 4. Nf3 {[%clk 0:03:02]}  Bg7 {[%clk 0:02:56]} 5. Bb5+ {[%clk 0:03:02]}  Nd7 {[%clk 0:02:55]} 6. d3 {[%clk 0:02:57]}  a6 {[%clk 0:02:55]} 7. Bc4 {[%clk 0:02:57]}  e6 {[%clk 0:02:55]} 8. O-O {[%clk 0:02:56]}  b5 {[%clk 0:02:55]} 9. Bb3 {[%clk 0:02:57]}  Bb7 {[%clk 0:02:55]} 10. f5 {[%clk 0:02:55]}  exf5 {[%clk 0:01:31]} 11. exf5 {[%clk 0:02:50]}  Ngf6 {[%clk 0:01:11]} 12. Re1+ {[%clk 0:02:17]}  Kf8 {[%clk 0:01:11]} 13. fxg6 {[%clk 0:02:11]}  hxg6 {[%clk 0:01:12]} 14. Bg5 {[%clk 0:02:06]}  Rh5 {[%clk 0:01:01]} 15. Qd2 {[%clk 0:01:48]}  Bxf3 {[%clk 0:00:58]} 16. gxf3 {[%clk 0:01:46]}  Ne5 {[%clk 0:00:59]} 17. Rxe5 {[%clk 0:01:23]}  dxe5 {[%clk 0:00:57]} 18. Ne4 {[%clk 0:01:16]}  Nxe4 {[%clk 0:00:54]} 0-1


[Site "https://www.chess.com"]

[Event "Titled Tuesday Blitz November 15 Late 2022"]
[White "Ghazarian, Kirk"]
[Black "Kamsky, Gata"]
[WhiteFideId "30908604"]
[BlackFideId "2000024"]
[WhiteElo "2346"]
[BlackElo "2666"]
[Result "1-0"]
[Round "05"]
[TimeControl "180+1"]
[Date "2022.11.15"]
[WhiteClock "0:00:04"]
[BlackClock "0:00:07"]

1. d4 {[%clk 0:03:00]}  Nf6 {[%clk 0:02:53]} 2. Nf3 {[%clk 0:02:58]}  g6 {[%clk 0:02:42]} 3. Bf4 {[%clk 0:02:58]}  Bg7 {[%clk 0:02:42]} 4. e3 {[%clk 0:02:58]}  d6 {[%clk 0:02:42]} 5. Be2 {[%clk 0:02:58]}  O-O {[%clk 0:02:41]} 6. h3 {[%clk 0:02:58]}  b6 {[%clk 0:02:33]} 7. O-O {[%clk 0:02:57]}  c5 {[%clk 0:02:31]} 8. c4 {[%clk 0:02:52]}  Nc6 {[%clk 0:02:29]} 9. Nc3 {[%clk 0:02:52]}  Bf5 {[%clk 0:02:27]} 10. d5 {[%clk 0:02:44]}  Nb4 {[%clk 0:02:21]} 11. a3 {[%clk 0:02:42]}  Na6 {[%clk 0:02:21]} 12. Nd2 {[%clk 0:02:39]}  Nc7 {[%clk 0:01:59]} 13. e4 {[%clk 0:02:37]}  Bd7 {[%clk 0:01:57]} 14. Bh2 {[%clk 0:02:31]}  Rb8 {[%clk 0:01:55]} 15. a4 {[%clk 0:02:25]}  a6 {[%clk 0:01:54]} 16. f4 {[%clk 0:02:16]}  b5 {[%clk 0:01:53]} 17. axb5 {[%clk 0:02:17]}  axb5 {[%clk 0:01:52]} 18. e5 {[%clk 0:02:16]}  Nfe8 {[%clk 0:01:52]} 19. b3 {[%clk 0:02:08]}  bxc4 {[%clk 0:01:41]} 20. bxc4 {[%clk 0:02:01]}  e6 {[%clk 0:01:39]} 21. Nde4 {[%clk 0:01:51]}  exd5 {[%clk 0:01:36]} 22. cxd5 {[%clk 0:01:48]}  Nb5 {[%clk 0:01:27]} 23. Nxb5 {[%clk 0:01:32]}  Bxb5 {[%clk 0:01:27]} 24. Bxb5 {[%clk 0:01:21]}  Rxb5 {[%clk 0:01:25]} 25. Ra6 {[%clk 0:01:17]}  Rb4 {[%clk 0:01:14]} 26. Nxd6 {[%clk 0:01:11]}  Nc7 {[%clk 0:01:12]} 27. Rc6 {[%clk 0:00:50]}  Rd4 {[%clk 0:01:11]} 28. Qf3 {[%clk 0:00:50]}  Nxd5 {[%clk 0:01:10]} 29. Rxc5 {[%clk 0:00:45]}  Qb6 {[%clk 0:01:07]} 30. Rb5 {[%clk 0:00:41]}  Qc6 {[%clk 0:01:01]} 31. Rbb1 {[%clk 0:00:33]}  Rd2 {[%clk 0:00:57]} 32. Rfc1 {[%clk 0:00:25]}  Qa4 {[%clk 0:00:53]} 33. Rd1 {[%clk 0:00:22]}  Qd4+ {[%clk 0:00:49]} 34. Kh1 {[%clk 0:00:22]}  Nc3 {[%clk 0:00:47]} 35. Rxd2 {[%clk 0:00:18]}  Qxd2 {[%clk 0:00:48]} 36. Rf1 {[%clk 0:00:17]}  Qe2 {[%clk 0:00:31]} 37. f5 {[%clk 0:00:11]}  Qxf3 {[%clk 0:00:28]} 38. Rxf3 {[%clk 0:00:12]}  Nd5 {[%clk 0:00:27]} 39. f6 {[%clk 0:00:09]}  Bh6 {[%clk 0:00:27]} 40. Rd3 {[%clk 0:00:08]}  Nc7 {[%clk 0:00:26]} 41. Rc3 {[%clk 0:00:07]}  Ne6 {[%clk 0:00:26]} 42. Rb3 {[%clk 0:00:07]}  Ra8 {[%clk 0:00:24]} 43. Bg3 {[%clk 0:00:06]}  Bf4 {[%clk 0:00:18]} 44. Bxf4 {[%clk 0:00:06]}  Nxf4 {[%clk 0:00:18]} 45. Rb7 {[%clk 0:00:06]}  Rf8 {[%clk 0:00:18]} 46. Kh2 {[%clk 0:00:06]}  h5 {[%clk 0:00:16]} 47. h4 {[%clk 0:00:06]}  Ne6 {[%clk 0:00:14]} 48. Re7 {[%clk 0:00:06]}  Nd4 {[%clk 0:00:12]} 49. Ne4 {[%clk 0:00:05]}  Nf5 {[%clk 0:00:11]} 50. Rc7 {[%clk 0:00:04]}  Re8 {[%clk 0:00:11]} 51. Ng5 {[%clk 0:00:03]}  Rf8 {[%clk 0:00:10]} 52. e6 {[%clk 0:00:03]}  fxe6 {[%clk 0:00:09]} 53. f7+ {[%clk 0:00:04]}  Kh8 {[%clk 0:00:07]} 54. Nxe6 {[%clk 0:00:04]} 1-0


[Site "https://www.chess.com"]

[Event "Titled Tuesday Blitz November 15 Late 2022"]
[White "Goroshkov, Maksym"]
[Black "Svane, Frederik"]
[WhiteFideId "14142716"]
[BlackFideId "12923044"]
[WhiteElo "2257"]
[BlackElo "2466"]
[Result "0-1"]
[Round "05"]
[TimeControl "180+1"]
[Date "2022.11.16"]
[WhiteClock "0:01:58"]
[BlackClock "0:02:05"]

1. e4 {[%clk 0:02:58]}  e6 {[%clk 0:02:58]} 2. d3 {[%clk 0:02:58]}  d5 {[%clk 0:02:59]} 3. exd5 {[%clk 0:02:59]}  exd5 {[%clk 0:02:59]} 4. Nf3 {[%clk 0:02:59]}  Nf6 {[%clk 0:02:58]} 5. Be2 {[%clk 0:03:00]}  Bd6 {[%clk 0:02:57]} 6. O-O {[%clk 0:03:00]}  O-O {[%clk 0:02:58]} 7. c4 {[%clk 0:03:00]}  Bf5 {[%clk 0:02:43]} 8. Nd4 {[%clk 0:02:59]}  Bg6 {[%clk 0:02:42]} 9. Bg5 {[%clk 0:02:56]}  Be5 {[%clk 0:02:33]} 10. Be3 {[%clk 0:02:49]}  c5 {[%clk 0:02:33]} 11. Nb5 {[%clk 0:02:46]}  Bxb2 {[%clk 0:02:32]} 12. Bxc5 {[%clk 0:02:41]}  Bxa1 {[%clk 0:02:23]} 13. Bxf8 {[%clk 0:02:40]}  Kxf8 {[%clk 0:02:20]} 14. f4 {[%clk 0:02:32]}  a6 {[%clk 0:02:17]} 15. Nd2 {[%clk 0:02:20]}  axb5 {[%clk 0:02:11]} 16. Qxa1 {[%clk 0:02:20]}  dxc4 {[%clk 0:02:11]} 17. f5 {[%clk 0:02:19]}  cxd3 {[%clk 0:02:08]} 18. Bf3 {[%clk 0:02:18]}  Bh5 {[%clk 0:02:08]} 19. Bxb7 {[%clk 0:02:03]}  Qb6+ {[%clk 0:02:07]} 20. Kh1 {[%clk 0:02:03]}  Qxb7 {[%clk 0:02:08]} 21. Qd4 {[%clk 0:02:02]}  Nc6 {[%clk 0:02:07]} 22. Qxd3 {[%clk 0:02:02]}  Rd8 {[%clk 0:02:06]} 23. Qe3 {[%clk 0:02:00]}  Qe7 {[%clk 0:02:05]} 24. Qg5 {[%clk 0:02:00]}  h6 {[%clk 0:02:05]} 25. Qf4 {[%clk 0:01:59]}  Qe5 {[%clk 0:02:05]} 26. Qf2 {[%clk 0:01:58]}  Qd4 {[%clk 0:02:05]} 0-1


[Site "https://www.chess.com"]

[Event "Titled Tuesday Blitz November 15 Late 2022"]
[White "Grapsa, Georgia"]
[Black "Stanisz, Patryk"]
[WhiteFideId "4206436"]
[BlackFideId "1123106"]
[WhiteElo "1877"]
[BlackElo "2069"]
[Result "0-1"]
[Round "05"]
[TimeControl "180+1"]
[Date "2022.11.16"]
[WhiteClock "0:00:18"]
[BlackClock "0:00:08"]

1. e4 {[%clk 0:03:00]}  c5 {[%clk 0:02:57]} 2. Nc3 {[%clk 0:02:59]}  a6 {[%clk 0:02:55]} 3. g3 {[%clk 0:02:59]}  b5 {[%clk 0:02:55]} 4. Bg2 {[%clk 0:03:00]}  Bb7 {[%clk 0:02:55]} 5. d3 {[%clk 0:03:00]}  b4 {[%clk 0:02:55]} 6. Nce2 {[%clk 0:02:59]}  g6 {[%clk 0:02:56]} 7. f4 {[%clk 0:02:59]}  Bg7 {[%clk 0:02:56]} 8. Nf3 {[%clk 0:02:59]}  e6 {[%clk 0:02:56]} 9. O-O {[%clk 0:02:59]}  Ne7 {[%clk 0:02:57]} 10. c3 {[%clk 0:02:57]}  a5 {[%clk 0:02:55]} 11. d4 {[%clk 0:02:54]}  cxd4 {[%clk 0:02:34]} 12. Nfxd4 {[%clk 0:02:55]}  bxc3 {[%clk 0:02:29]} 13. bxc3 {[%clk 0:02:53]}  O-O {[%clk 0:02:28]} 14. e5 {[%clk 0:02:46]}  Bxg2 {[%clk 0:02:27]} 15. Kxg2 {[%clk 0:02:46]}  d6 {[%clk 0:02:25]} 16. exd6 {[%clk 0:02:43]}  Qxd6 {[%clk 0:02:26]} 17. a4 {[%clk 0:02:41]}  Nbc6 {[%clk 0:02:18]} 18. Nb5 {[%clk 0:02:37]}  Qc5 {[%clk 0:02:11]} 19. Ned4 {[%clk 0:02:26]}  Rfd8 {[%clk 0:02:02]} 20. Be3 {[%clk 0:02:07]}  Nd5 {[%clk 0:01:56]} 21. Bg1 {[%clk 0:01:32]}  Nxd4 {[%clk 0:01:19]} 22. cxd4 {[%clk 0:01:31]}  Qe7 {[%clk 0:01:07]} 23. Qf3 {[%clk 0:01:21]}  Rac8 {[%clk 0:01:05]} 24. Rac1 {[%clk 0:01:14]}  Qb4 {[%clk 0:01:00]} 25. Qa3 {[%clk 0:01:06]}  Rxc1 {[%clk 0:00:55]} 26. Rxc1 {[%clk 0:01:04]}  Qd2+ {[%clk 0:00:53]} 27. Kh3 {[%clk 0:01:01]}  h5 {[%clk 0:00:42]} 28. Qc5 {[%clk 0:00:54]}  Bf6 {[%clk 0:00:28]} 29. Qc2 {[%clk 0:00:45]}  Qb4 {[%clk 0:00:24]} 30. Bf2 {[%clk 0:00:42]}  h4 {[%clk 0:00:21]} 31. Be1 {[%clk 0:00:40]}  Qe7 {[%clk 0:00:20]} 32. Bxa5 {[%clk 0:00:39]}  Re8 {[%clk 0:00:12]} 33. Be1 {[%clk 0:00:37]}  hxg3 {[%clk 0:00:12]} 34. hxg3 {[%clk 0:00:38]}  Kg7 {[%clk 0:00:12]} 35. Kg2 {[%clk 0:00:38]}  Rh8 {[%clk 0:00:12]} 36. Bf2 {[%clk 0:00:38]}  Qb7 {[%clk 0:00:12]} 37. Qc6 {[%clk 0:00:29]}  Qe7 {[%clk 0:00:09]} 38. a5 {[%clk 0:00:21]}  Qb4 {[%clk 0:00:09]} 39. a6 {[%clk 0:00:20]}  Qd2 {[%clk 0:00:09]} 40. Qc2 {[%clk 0:00:18]}  Ne3+ {[%clk 0:00:08]} 41. Kf3 {[%clk 0:00:19]}  Nxc2 {[%clk 0:00:08]} 42. Re1 {[%clk 0:00:18]}  Nxe1+ {[%clk 0:00:08]} 0-1


[Site "https://www.chess.com"]

[Event "Titled Tuesday Blitz November 15 Late 2022"]
[White "Grot, Blazej"]
[Black "Crevatin, Leo"]
[WhiteFideId "21835845"]
[BlackFideId "1726307"]
[WhiteElo "1822"]
[BlackElo "2208"]
[Result "0-1"]
[Round "05"]
[TimeControl "180+1"]
[Date "2022.11.16"]
[WhiteClock "0:00:05"]
[BlackClock "0:01:29"]

1. e4 {[%clk 0:03:00]}  c5 {[%clk 0:02:59]} 2. Nc3 {[%clk 0:03:00]}  Nc6 {[%clk 0:02:59]} 3. Bb5 {[%clk 0:03:00]}  Nd4 {[%clk 0:02:59]} 4. Nf3 {[%clk 0:03:00]}  a6 {[%clk 0:02:59]} 5. Bc4 {[%clk 0:03:00]}  b5 {[%clk 0:02:58]} 6. Bd5 {[%clk 0:03:00]}  Rb8 {[%clk 0:02:58]} 7. Nxd4 {[%clk 0:02:57]}  cxd4 {[%clk 0:02:58]} 8. Ne2 {[%clk 0:02:58]}  e6 {[%clk 0:02:54]} 9. Bb3 {[%clk 0:02:58]}  Bc5 {[%clk 0:02:50]} 10. d3 {[%clk 0:02:57]}  Nf6 {[%clk 0:02:50]} 11. Bg5 {[%clk 0:02:56]}  Qa5+ {[%clk 0:02:47]} 12. Bd2 {[%clk 0:02:33]}  Qb6 {[%clk 0:02:36]} 13. O-O {[%clk 0:02:32]}  O-O {[%clk 0:02:35]} 14. f4 {[%clk 0:02:31]}  Bb7 {[%clk 0:02:19]} 15. f5 {[%clk 0:02:28]}  e5 {[%clk 0:02:13]} 16. Qe1 {[%clk 0:02:16]}  d5 {[%clk 0:02:07]} 17. exd5 {[%clk 0:02:02]}  Bxd5 {[%clk 0:02:07]} 18. Bxd5 {[%clk 0:01:59]}  Nxd5 {[%clk 0:02:08]} 19. Qg3 {[%clk 0:01:54]}  e4 {[%clk 0:02:03]} 20. Nf4 {[%clk 0:01:21]}  Nxf4 {[%clk 0:02:00]} 21. Bxf4 {[%clk 0:01:20]}  Rbe8 {[%clk 0:02:00]} 22. dxe4 {[%clk 0:00:58]}  Rxe4 {[%clk 0:01:58]} 23. Kh1 {[%clk 0:00:57]}  Rfe8 {[%clk 0:01:54]} 24. Qf3 {[%clk 0:00:51]}  Bd6 {[%clk 0:01:47]} 25. Bxd6 {[%clk 0:00:42]}  Qxd6 {[%clk 0:01:48]} 26. f6 {[%clk 0:00:43]}  Qxf6 {[%clk 0:01:42]} 27. Qxf6 {[%clk 0:00:43]}  gxf6 {[%clk 0:01:43]} 28. Rxf6 {[%clk 0:00:44]}  Re1+ {[%clk 0:01:43]} 29. Rf1 {[%clk 0:00:44]}  Rxa1 {[%clk 0:01:42]} 30. Rxa1 {[%clk 0:00:44]}  Re2 {[%clk 0:01:42]} 31. Rc1 {[%clk 0:00:40]}  d3 {[%clk 0:01:40]} 32. cxd3 {[%clk 0:00:38]}  Rxb2 {[%clk 0:01:40]} 33. a4 {[%clk 0:00:35]}  bxa4 {[%clk 0:01:35]} 34. Ra1 {[%clk 0:00:25]}  a3 {[%clk 0:01:35]} 35. h3 {[%clk 0:00:25]}  a2 {[%clk 0:01:34]} 36. Kh2 {[%clk 0:00:26]}  Kg7 {[%clk 0:01:33]} 37. Kg3 {[%clk 0:00:26]}  Kf6 {[%clk 0:01:34]} 38. Kf3 {[%clk 0:00:26]}  Ke5 {[%clk 0:01:33]} 39. g4 {[%clk 0:00:19]}  Kd4 {[%clk 0:01:33]} 40. h4 {[%clk 0:00:12]}  Kxd3 {[%clk 0:01:32]} 41. g5 {[%clk 0:00:10]}  Kc3 {[%clk 0:01:28]} 42. Rc1+ {[%clk 0:00:08]}  Rc2 {[%clk 0:01:28]} 43. Ra1 {[%clk 0:00:08]}  Kb2 {[%clk 0:01:28]} 44. Rxa2+ {[%clk 0:00:05]}  Kxa2 {[%clk 0:01:29]} 0-1


[Site "https://www.chess.com"]

[Event "Titled Tuesday Blitz November 15 Late 2022"]
[White "Hajiyev, Kanan"]
[Black "Lopez Del Alamo, Antonio"]
[WhiteFideId "13404148"]
[BlackFideId "2227339"]
[WhiteElo "2118"]
[BlackElo "2175"]
[Result "1-0"]
[Round "05"]
[TimeControl "180+1"]
[Date "2022.11.16"]
[WhiteClock "0:01:03"]
[BlackClock "0:00:14"]

1. d4 {[%clk 0:02:33]}  Nf6 {[%clk 0:02:56]} 2. Nf3 {[%clk 0:02:34]}  g6 {[%clk 0:02:54]} 3. c4 {[%clk 0:02:35]}  Bg7 {[%clk 0:02:52]} 4. g3 {[%clk 0:02:36]}  O-O {[%clk 0:02:51]} 5. Bg2 {[%clk 0:02:36]}  d6 {[%clk 0:02:51]} 6. b3 {[%clk 0:02:37]}  Bf5 {[%clk 0:02:47]} 7. Bb2 {[%clk 0:02:38]}  c6 {[%clk 0:02:43]} 8. Nc3 {[%clk 0:02:39]}  Ne4 {[%clk 0:02:35]} 9. O-O {[%clk 0:02:39]}  Nxc3 {[%clk 0:02:33]} 10. Bxc3 {[%clk 0:02:40]}  Be4 {[%clk 0:02:33]} 11. Qd2 {[%clk 0:02:40]}  Nd7 {[%clk 0:02:31]} 12. Rac1 {[%clk 0:02:40]}  a6 {[%clk 0:01:58]} 13. Rfd1 {[%clk 0:02:40]}  b5 {[%clk 0:01:53]} 14. Ne1 {[%clk 0:02:36]}  Bxg2 {[%clk 0:01:52]} 15. Nxg2 {[%clk 0:02:37]}  Qb8 {[%clk 0:01:40]} 16. h4 {[%clk 0:02:31]}  h5 {[%clk 0:01:36]} 17. e4 {[%clk 0:02:30]}  c5 {[%clk 0:01:28]} 18. f4 {[%clk 0:02:08]}  bxc4 {[%clk 0:01:18]} 19. dxc5 {[%clk 0:01:59]}  Bxc3 {[%clk 0:01:12]} 20. Qxc3 {[%clk 0:01:47]}  Nxc5 {[%clk 0:01:11]} 21. Qxc4 {[%clk 0:01:47]}  a5 {[%clk 0:01:08]} 22. e5 {[%clk 0:01:35]}  Qb6 {[%clk 0:00:57]} 23. Kh2 {[%clk 0:01:20]}  Rfd8 {[%clk 0:00:48]} 24. exd6 {[%clk 0:01:20]}  exd6 {[%clk 0:00:39]} 25. Qd4 {[%clk 0:01:20]}  Rab8 {[%clk 0:00:29]} 26. f5 {[%clk 0:01:19]}  Nd7 {[%clk 0:00:18]} 27. fxg6 {[%clk 0:01:15]}  Qxd4 {[%clk 0:00:19]} 28. gxf7+ {[%clk 0:01:15]}  Kxf7 {[%clk 0:00:19]} 29. Rxd4 {[%clk 0:01:16]}  Ne5 {[%clk 0:00:19]} 30. Rc7+ {[%clk 0:01:11]}  Kg6 {[%clk 0:00:16]} 31. Nf4+ {[%clk 0:01:11]}  Kh6 {[%clk 0:00:17]} 32. Rd5 {[%clk 0:01:07]}  Rbc8 {[%clk 0:00:17]} 33. Rxc8 {[%clk 0:01:06]}  Rxc8 {[%clk 0:00:16]} 34. Rxd6+ {[%clk 0:01:06]}  Kh7 {[%clk 0:00:16]} 35. Nxh5 {[%clk 0:01:04]}  Ng4+ {[%clk 0:00:14]} 36. Kh3 {[%clk 0:01:03]} 1-0


[Site "https://www.chess.com"]